bitfinex/quotes_SOLUSD_20251218
["timestamp","ask_amount","ask_price","bid_price","bid_amount"]
[1766039710303,12.50506317,122.81,122.77,0.72]
[1766039710946,18.57992878,122.82,122.78,0.72]
[1766039711130,19.10992878,122.82,122.78,0.72]
[1766039711439,22.94179695,122.82,122.78,0.72]
[1766039712256,22.94179695,122.82,122.78,8.1444125]
[1766039712540,22.94179695,122.82,122.79,0.66]
[1766039712937,18.57992878,122.82,122.79,0.66]
[1766039713118,22.94179695,122.82,122.79,0.66]
[1766039714059,22.41179695,122.82,122.79,0.66]
[1766039714262,22.94179695,122.82,122.79,0.66]
[1766039715127,22.41179695,122.82,122.79,0.66]
[1766039715327,22.94179695,122.82,122.79,0.66]
[1766039716554,22.94179695,122.82,122.77,29.17322585]
[1766039716555,3.83186817,122.8,122.76,0.66]
[1766039716740,3.83186817,122.79,122.76,8.145634]
[1766039716932,3.83186817,122.79,122.77,0.66]
[1766039717952,4.36186817,122.8,122.77,0.66]
[1766039718549,12.50549256,122.8,122.77,0.66]
[1766039720247,8.14164603,122.83,122.79,8.80994492]
[1766039720448,3.83186817,122.84,122.79,8.80994492]
[1766039720449,11.97273733,122.84,122.81,0.66]
[1766039720857,12.50273733,122.84,122.81,0.66]
[1766039721248,11.97273733,122.84,122.81,0.66]
[1766039721472,12.5019935,122.85,122.81,0.66]
[1766039722173,4.36186817,122.84,122.81,0.66]
[1766039722374,0.53,122.83,122.8,8.80288071]
[1766039722677,22.94082632,122.84,122.81,0.66]
[1766039723383,21.55745114,122.84,122.81,0.66]
[1766039724359,18.57895815,122.84,122.81,0.66]
[1766039724675,21.02731514,122.84,122.81,0.66]
[1766039725971,21.55731514,122.84,122.81,0.66]
[1766039726551,10.43767296,122.84,122.82,0.66]
[1766039731854,10.43767296,122.84,122.82,8.80189064]
[1766039732075,12.88602995,122.84,122.83,0.66]
[1766039732375,10.43767296,122.84,122.83,0.66]
[1766039733779,8.99767296,122.84,122.83,0.66]
[1766039733966,8.27767296,122.84,122.83,0.66]
[1766039734166,8.27767296,122.84,122.82,0.21]
[1766039734683,8.99767296,122.84,122.81,17.16260431]
[1766039736485,8.99767296,122.84,122.81,37.51925279]
[1766039739459,8.99767296,122.84,122.81,46.45925279]
[1766039742586,8.27767296,122.84,122.82,0.21]
[1766039743387,8.27767296,122.84,122.83,8.14133355]
[1766039743688,0.71,122.85,122.83,8.14133355]
[1766039747093,10.43767296,122.86,122.83,0.21]
[1766039747593,3.15835699,122.87,122.84,0.21]
[1766039747887,0.71,122.87,122.84,0.21]
[1766039749076,0.71,122.87,122.84,8.35005025]
[1766039752006,0.71,122.86,122.84,8.14005025]
[1766039753206,0.71,122.86,122.84,8.35005025]
[1766039753586,0.71,122.86,122.84,8.14005025]
[1766039755987,2.44835699,122.87,122.84,8.81005025]
[1766039756188,21.80602995,122.88,122.84,8.81005025]
[1766039758001,0.71,122.87,122.84,8.81005025]
[1766039761609,3.15835699,122.87,122.84,8.81005025]
[1766039762712,21.80602995,122.88,122.85,0.67]
[1766039763507,19.35767296,122.88,122.85,0.67]
[1766039763709,1e-08,122.89,122.85,17.72994492]
[1766039763918,1e-08,122.89,122.88,9.47994492]
[1766039764213,1e-08,122.89,122.88,18.39994492]
[1766039765719,0.81,122.92,122.88,20.17830191]
[1766039765900,0.81,122.92,122.89,0.67]
[1766039766100,0.81,122.92,122.9,8.8066965]
[1766039766403,17.05435193,122.94,122.91,0.67]
[1766039766404,12.07835699,122.94,122.91,0.67]
[1766039767011,9.63,122.94,122.91,0.67]
[1766039767212,0.81,122.95,122.91,0.67]
[1766039767410,0.1,122.95,122.93,0.67]
[1766039767606,3.25835699,122.97,122.93,0.67]
[1766039767607,0.71,122.96,122.93,0.67]
[1766039768510,0.71,122.96,122.94,8.13404912]
[1766039769015,0.71,122.96,122.94,8.80404912]
[1766039769314,0.71,122.96,122.94,8.13404912]
[1766039769524,0.71,122.96,122.93,8.80443019]
[1766039770393,0.1,122.97,122.95,8.8029835]
[1766039771820,0.1,122.97,122.95,11.25134049]
[1766039777025,0.71,122.98,122.95,10.58134049]
[1766039777533,0.71,122.98,122.95,11.27134049]
[1766039778822,11.10767296,122.99,122.96,3.13835699]
[1766039779137,10.43767296,122.99,122.96,3.13835699]
[1766039779342,0.67,122.98,122.96,3.13835699]
[1766039780730,0.67,122.98,122.96,11.27055246]
[1766039781318,0.67,122.98,122.96,8.82219547]
[1766039784751,0.1,123.0,122.98,0.69]
[1766039784947,0.1,123.0,122.99,0.69]
[1766039785660,0.1,123.0,122.98,12.63558879]
[1766039785824,0.1,123.0,122.98,8.82131313]
[1766039786036,0.77,123.0,122.98,8.82131313]
[1766039786217,0.1,123.0,122.99,0.69]
[1766039786415,1e-08,123.0,122.99,0.69]
[1766039786620,0.67,123.03,123.0,0.69]
[1766039786835,0.67,123.03,123.01,0.69]
[1766039787038,0.67,123.03,123.0,4.50427566]
[1766039787246,8.79765032,123.04,123.01,0.69]
[1766039787524,0.67,123.03,123.0,4.50427566]
[1766039787734,0.67,123.03,123.0,12.63422872]
[1766039788863,0.67,123.04,123.01,4.50427566]
[1766039789218,0.67,123.04,123.0,8.12995306]
[1766039789518,0.67,123.02,122.99,8.13044077]
[1766039790144,0.67,123.02,122.99,8.82044077]
[1766039790341,0.67,123.02,122.99,8.13044077]
[1766039790514,0.67,123.02,122.99,8.82044077]
[1766039790714,0.67,123.01,122.98,21.5554149]
[1766039791537,0.67,123.01,122.98,17.74113924]
[1766039792239,0.67,123.01,122.98,9.61]
[1766039792240,8.79957981,123.01,122.98,9.61]
[1766039792427,0.67,123.0,122.97,8.82162319]
[1766039794819,11.10767296,122.99,122.96,21.55701468]
[1766039796743,0.67,122.98,122.95,8.13307461]
[1766039796933,0.67,122.98,122.95,8.82307461]
[1766039797132,0.67,122.98,122.96,8.13268967]
[1766039798145,0.67,122.98,122.96,8.82268967]
[1766039798720,0.67,123.0,122.98,0.69]
[1766039799147,10.43767296,122.99,122.97,0.69]
[1766039799850,10.43767296,122.99,122.97,8.82165284]
[1766039804751,0.65,122.98,122.97,8.13165284]
[1766039805247,0.65,122.98,122.95,8.81296442]
[1766039805648,0.65,122.98,122.95,8.13296442]
[1766039805831,0.65,122.97,122.95,8.13296442]
[1766039806032,4.46454793,122.98,122.95,8.81296442]
[1766039806552,0.65,122.98,122.95,8.81296442]
[1766039811941,0.65,122.98,122.95,12.62751235]
[1766039812258,29.24302631,123.02,122.96,3.81454793]
[1766039812455,0.65,123.0,122.97,0.68]
[1766039814361,0.65,123.0,122.97,8.81147865]
[1766039814563,19.21709333,123.01,122.98,0.68]
[1766039818978,19.21709333,123.01,122.98,8.81139875]
[1766039820362,11.08767296,123.01,122.99,8.81058007]
[1766039820564,11.08767296,123.01,122.99,8.13058007]
[1766039821379,14.90222089,123.01,122.98,8.81109174]
[1766039821680,11.08767296,123.01,122.98,8.81109174]
[1766039822386,0.65,123.0,122.98,8.81109174]
[1766039822884,10.43767296,123.01,122.98,8.81109174]
[1766039823181,11.08767296,123.01,122.98,8.81109174]
[1766039823384,0.65,123.0,122.98,8.81109174]
[1766039824199,0.65,123.0,122.97,8.81180156]
[1766039824573,11.94471071,123.0,122.97,8.81180156]
[1766039824773,4.46454793,123.0,122.97,8.81180156]
[1766039825694,0.65,123.0,122.97,8.81180156]
[1766039826075,0.65,122.99,122.97,8.81180156]
[1766039826273,0.65,122.99,122.97,8.13180156]
[1766039827705,12.59486812,123.0,122.97,8.81180156]
[1766039827896,4.46454793,123.0,122.97,8.81180156]
[1766039828493,0.65,123.0,122.97,8.81180156]
[1766039828888,0.65,123.0,122.98,0.68]
[1766039830298,0.65,122.99,122.97,8.13180156]
[1766039831300,0.65,122.99,122.97,8.79180156]
[1766039833199,0.7,122.98,122.96,17.76259871]
[1766039833394,0.7,122.98,122.95,8.84310546]
[1766039833597,0.7,122.97,122.95,17.76310546]
[1766039833802,4.51454793,122.98,122.95,17.76310546]
[1766039834003,4.51454793,122.98,122.95,8.84310546]
[1766039834213,0.7,122.95,122.91,8.84574591]
[1766039834426,4.51454793,122.94,122.91,8.13574591]
[1766039834586,4.51454793,122.94,122.92,0.71]
[1766039834983,4.51454793,122.94,122.91,8.84574591]
[1766039835297,0.7,122.93,122.91,0.71]
[1766039835495,12.64870687,122.94,122.91,0.71]
[1766039836305,12.64870687,122.94,122.91,8.84598682]
[1766039836900,0.7,122.93,122.9,17.65646135]
[1766039837102,3.81454793,122.93,122.9,0.71]
[1766039837493,3.81454793,122.93,122.9,8.84665177]
[1766039838905,3.81454793,122.93,122.9,8.13665177]
[1766039839108,12.51870687,122.94,122.91,0.71]
[1766039840112,11.94870687,122.94,122.91,0.71]
[1766039840287,0.57,122.92,122.89,17.76705523]
[1766039840489,0.57,122.92,122.9,0.71]
[1766039840690,3.81454793,122.93,122.9,0.71]
[1766039840884,3.81454793,122.92,122.9,0.71]
[1766039841614,4.38454793,122.92,122.89,8.84705523]
[1766039841821,4.38454793,122.91,122.88,17.65765914]
[1766039842117,3.81454793,122.91,122.89,8.84726053]
[1766039843297,4.38454793,122.91,122.88,16.94765263]
[1766039843501,3.81454793,122.91,122.89,0.71]
[1766039844392,4.38454793,122.91,122.89,0.71]
[1766039844615,8.13542345,122.92,122.88,0.71]
[1766039844913,0.57,122.9,122.87,8.84863798]
[1766039845621,0.57,122.9,122.88,0.71]
[1766039847316,11.15221434,122.91,122.88,0.71]
[1766039847891,0.57,122.9,122.88,0.71]
[1766039848092,0.57,122.89,122.87,8.13863798]
[1766039848299,3.01576233,122.89,122.86,8.84922981]
[1766039849009,3.01576233,122.89,122.87,0.71]
[1766039849316,2.44576233,122.89,122.87,0.71]
[1766039854320,0.57,122.89,122.87,0.71]
[1766039854500,11.15285141,122.9,122.87,8.84865258]
[1766039855819,3.01576233,122.9,122.87,8.84865258]
[1766039856015,2.44576233,122.9,122.87,8.13865258]
[1766039856313,11.36576233,122.91,122.88,0.71]
[1766039856512,3.01576233,122.92,122.88,0.71]
[1766039858221,3.01576233,122.92,122.89,8.84735861]
[1766039859022,2.44576233,122.91,122.89,8.84735861]
[1766039859320,2.44546183,122.91,122.89,8.84735861]
[1766039860501,10.43767296,122.9,122.89,8.84735861]
[1766039860699,0.57,122.89,122.86,0.71]
[1766039860901,2.44546183,122.89,122.87,8.8486452]
[1766039861926,3.01546183,122.89,122.86,17.71910368]
[1766039862223,3.01546183,122.89,122.86,8.79910368]
[1766039862809,3.01546183,122.88,122.86,8.79910368]
[1766039863124,2.44546183,122.88,122.86,8.79910368]
[1766039863314,12.88313479,122.88,122.86,8.79910368]
[1766039863509,10.43767296,122.88,122.86,8.79910368]
[1766039864115,10.43767296,122.88,122.86,8.13910368]
[1766039864314,10.43767296,122.88,122.86,8.79910368]
[1766039865108,0.57,122.88,122.86,8.79910368]
[1766039865419,10.58290636,122.89,122.86,8.79910368]
[1766039865626,11.15290636,122.89,122.86,8.79910368]
[1766039866132,3.01546183,122.89,122.86,8.79910368]
[1766039866311,2.44546183,122.89,122.87,0.66]
[1766039866512,3.01546183,122.89,122.86,8.79910368]
[1766039866716,11.15295764,122.89,122.86,8.79910368]
[1766039870332,11.15295764,122.89,122.85,16.94995306]
[1766039870523,11.15295764,122.89,122.86,0.66]
[1766039872642,11.15295764,122.89,122.87,0.66]
[1766039874440,10.58295764,122.89,122.87,0.66]
[1766039874846,11.15295764,122.89,122.87,0.66]
[1766039875350,10.43767296,122.88,122.87,0.66]
[1766039876419,21.59015386,122.9,122.87,0.66]
[1766039876624,21.59015386,122.9,122.88,0.66]
[1766039876827,21.59015386,122.9,122.87,8.13863604]
[1766039877027,21.59015386,122.9,122.87,8.79863604]
[1766039877938,10.43767296,122.9,122.87,0.66]
[1766039878141,29.25791945,122.93,122.88,0.66]
[1766039878142,17.62503967,122.93,122.88,0.66]
[1766039878325,2.44546183,122.92,122.88,0.66]
[1766039878527,12.88313479,122.92,122.88,0.66]
[1766039878940,13.45313479,122.92,122.88,0.66]
[1766039879450,21.58870419,122.92,122.89,0.66]
[1766039882218,21.58870419,122.92,122.89,8.79732871]
[1766039882422,21.58870419,122.92,122.88,8.13802083]
[1766039882623,21.58870419,122.92,122.89,0.66]
[1766039882845,10.43767296,122.92,122.89,0.66]
[1766039883030,2.44546183,122.94,122.9,0.66]
[1766039883223,2.44546183,122.95,122.92,0.66]
[1766039883424,3.12546183,122.93,122.9,0.66]
[1766039884844,3.12546183,122.93,122.9,8.79627207]
[1766039885446,3.12546183,122.92,122.9,8.79627207]
[1766039886631,3.12546183,122.93,122.91,0.66]
[1766039887353,3.12546183,122.93,122.9,8.79627207]
[1766039887727,0.68,122.92,122.9,8.79627207]
[1766039888726,0.68,122.92,122.9,8.13627207]
[1766039890346,3.12546183,122.91,122.89,17.0570442]
[1766039890530,3.12546183,122.91,122.89,8.1370442]
[1766039890730,0.68,122.91,122.89,8.7970442]
[1766039891555,0.68,122.91,122.89,0.66]
[1766039891729,0.71,122.9,122.88,8.1377781]
[1766039892056,0.71,122.9,122.88,8.8577781]
[1766039893330,29.25730783,122.93,122.89,8.13733479]
[1766039893331,0.7,122.92,122.89,8.13733479]
[1766039893543,3.14546183,122.92,122.89,8.85733479]
[1766039893751,2.44546183,122.92,122.89,8.85733479]
[1766039893949,0.7,122.91,122.89,8.85733479]
[1766039894534,0.7,122.91,122.89,0.72]
[1766039895231,0.7,122.91,122.89,8.85719002]
[1766039895550,9.62,122.93,122.9,0.72]
[1766039895750,0.7,122.92,122.9,8.85625701]
[1766039896049,11.36546183,122.93,122.9,8.85625701]
[1766039896050,12.06546183,122.93,122.9,8.85625701]
[1766039897470,0.7,122.92,122.9,8.85625701]
[1766039899977,12.06546183,122.93,122.9,8.85625701]
[1766039901369,3.14546183,122.93,122.9,8.85625701]
[1766039901870,0.7,122.93,122.9,8.85625701]
[1766039902053,3.14546183,122.93,122.9,8.85625701]
[1766039902451,0.7,122.92,122.89,8.85735861]
[1766039902766,3.14546183,122.92,122.89,8.85735861]
[1766039903072,3.14546183,122.92,122.9,0.72]
[1766039903274,0.7,122.92,122.9,0.72]
[1766039903763,3.14546183,122.93,122.9,0.72]
[1766039904556,3.14546183,122.93,122.9,8.85612194]
[1766039905466,0.7,122.92,122.9,8.85612194]
[1766039908970,0.7,122.92,122.89,8.8572483]
[1766039909167,4.51996672,122.92,122.89,8.8572483]
[1766039909364,0.7,122.91,122.88,17.77768879]
[1766039909567,0.7,122.89,122.87,8.13831089]
[1766039909771,0.7,122.89,122.87,8.85831089]
[1766039910869,4.51996672,122.9,122.87,8.85831089]
[1766039911069,4.51996672,122.89,122.87,8.85831089]
[1766039911865,3.81996672,122.89,122.87,0.72]
[1766039912072,4.51996672,122.89,122.86,8.85919639]
[1766039912254,4.51996672,122.89,122.87,0.72]
[1766039912461,4.51996672,122.89,122.86,8.85919639]
[1766039913658,4.51996672,122.89,122.85,17.05969058]
[1766039913659,0.7,122.88,122.85,17.05969058]
[1766039914166,0.7,122.88,122.86,0.72]
[1766039914366,0.7,122.88,122.86,8.85925327]
[1766039914586,4.51996672,122.88,122.86,8.85925327]
[1766039915082,0.7,122.88,122.86,8.85925327]
[1766039916078,0.7,122.87,122.85,17.77973463]
[1766039916864,0.7,122.87,122.85,8.85973463]
[1766039917379,4.51996672,122.88,122.85,8.85973463]
[1766039918382,4.51996672,122.88,122.85,8.13973463]
[1766039918566,4.51996672,122.88,122.86,0.72]
[1766039920175,0.7,122.88,122.86,0.72]
[1766039921064,10.43767296,122.9,122.87,0.72]
[1766039921065,23.09460957,122.9,122.87,0.72]
[1766039921884,11.13767296,122.9,122.87,8.85855742]
[1766039922077,8.92,122.92,122.88,0.71]
[1766039922078,23.89763968,122.92,122.88,0.71]
[1766039922382,0.72,122.91,122.88,0.71]
[1766039923284,0.72,122.91,122.89,0.71]
[1766039923877,20.07767296,122.92,122.89,0.71]
[1766039924075,11.15767296,122.92,122.89,0.71]
[1766039924469,10.43767296,122.92,122.89,0.71]
[1766039924870,13.45996672,122.94,122.9,0.71]
[1766039925186,0.72,122.93,122.9,0.71]
[1766039925568,0.72,122.93,122.91,0.71]
[1766039925777,13.45996672,122.94,122.91,0.71]
[1766039925971,10.43767296,122.95,122.91,0.71]
[1766039926174,3.81996672,122.96,122.92,0.71]
[1766039926470,4.53996672,122.95,122.92,0.71]
[1766039926684,4.53851993,122.95,122.92,0.71]
[1766039927281,8.13277679,122.96,122.92,8.13506152]
[1766039927480,8.92,122.97,122.92,8.13506152]
[1766039927481,21.5907645,122.97,122.93,0.71]
[1766039928194,17.05224457,122.97,122.93,0.71]
[1766039928396,0.72,122.97,122.94,0.71]
[1766039929185,23.10764336,122.98,122.94,0.71]
[1766039929391,0.72,122.97,122.95,0.71]
[1766039931488,10.43767296,122.98,122.96,0.71]
[1766039931893,8.92,122.99,122.96,0.71]
[1766039932908,8.92,122.99,122.96,8.13257693]
[1766039933110,8.92,122.99,122.97,0.71]
[1766039933492,9.64,122.99,122.97,0.71]
[1766039934287,13.45851993,122.99,122.97,0.71]
[1766039935284,12.73851993,122.99,122.97,0.71]
[1766039935483,13.45851993,122.99,122.96,0.71]
[1766039936603,13.45851993,122.99,122.96,8.13239172]
[1766039937011,13.45851993,122.99,122.96,8.84239172]
[1766039937799,14.97619289,123.0,122.97,0.71]
[1766039938304,4.53851993,122.99,122.96,8.13239172]
[1766039938496,0.72,122.98,122.96,8.13239172]
[1766039938703,0.72,122.98,122.96,8.84239172]
[1766039941212,3.81851993,122.99,122.96,8.84239172]
[1766039941385,4.53851993,122.97,122.94,0.71]
[1766039941586,4.53851993,122.97,122.94,8.84360941]
[1766039941798,0.72,122.97,122.94,8.84360941]
[1766039941985,0.72,122.97,122.95,0.71]
[1766039942388,4.53851993,122.97,122.94,8.84360941]
[1766039942589,4.53851993,122.97,122.95,0.71]
[1766039942791,4.53851993,122.97,122.93,28.47046662]
[1766039942987,4.53851993,122.95,122.92,8.84511709]
[1766039943204,3.81851993,122.95,122.93,0.71]
[1766039943404,14.25619289,122.95,122.93,0.71]
[1766039943581,14.97619289,122.95,122.92,8.84511709]
[1766039944488,0.72,122.94,122.92,8.84511709]
[1766039945118,14.97619289,122.95,122.92,8.84511709]
[1766039945597,14.97619289,122.95,122.92,0.71]
[1766039946307,0.72,122.94,122.91,29.18531378]
[1766039946501,0.72,122.94,122.91,28.47531378]
[1766039946695,0.72,122.94,122.92,0.71]
[1766039947221,14.25619289,122.95,122.92,0.71]
[1766039947403,14.97619289,122.95,122.92,0.71]
[1766039947603,14.97619289,122.95,122.92,8.84501717]
[1766039948918,11.15767296,122.95,122.93,8.84470145]
[1766039949110,10.43767296,122.95,122.93,8.84470145]
[1766039950397,10.43767296,122.95,122.93,8.13470145]
[1766039950597,4.53851993,122.96,122.93,8.84470145]
[1766039952019,0.72,122.96,122.93,8.84470145]
[1766039952222,4.53851993,122.96,122.93,8.84470145]
[1766039959423,0.66,122.95,122.93,8.13470145]
[1766039960422,0.66,122.95,122.93,8.79470145]
[1766039972014,13.54117144,122.97,122.94,0.66]
[1766039972332,10.43767296,122.99,122.96,0.66]
[1766039972537,11.09767296,122.99,122.96,0.66]
[1766039972736,3.10349848,123.0,122.96,0.66]
[1766039972920,21.80117144,123.01,122.97,0.66]
[1766039973233,0.66,123.0,122.97,0.66]
[1766039973536,3.10349848,123.0,122.97,0.66]
[1766039974121,10.43767296,122.99,122.98,8.13140348]
[1766039974320,13.54117144,122.99,122.96,8.92]
[1766039974527,0.66,122.98,122.96,9.58]
[1766039975045,0.66,122.98,122.96,17.71225043]
[1766039975421,0.66,122.98,122.96,8.13225043]
[1766039976042,11.09767296,122.98,122.97,8.13206473]
[1766039976742,10.43767296,122.98,122.97,8.13206473]
[1766039977122,10.43767296,122.98,122.97,8.79206473]
[1766039977742,3.10349848,123.0,122.97,8.13206473]
[1766039978036,0.66,123.0,122.98,0.66]
[1766039978623,0.66,122.99,122.97,8.79206473]
[1766039979627,10.43767296,122.98,122.97,8.79206473]
[1766039980429,11.09767296,122.98,122.96,8.79226123]
[1766039982640,10.43767296,122.98,122.96,8.13226123]
[1766039982942,10.43767296,122.98,122.97,0.66]
[1766039983318,10.43767296,122.98,122.96,8.79226123]
[1766039983520,10.43767296,122.98,122.97,0.66]
[1766039984850,10.43767296,122.98,122.97,8.79206473]
[1766039985847,10.43767296,122.98,122.97,17.71206473]
[1766039988549,0.68,122.98,122.97,8.92]
[1766039988745,3.12349848,122.98,122.95,8.79303906]
[1766039989536,0.68,122.98,122.95,8.79303906]
[1766039990733,0.68,122.98,122.96,0.66]
[1766039990932,0.68,122.98,122.95,8.13303906]
[1766039991140,0.68,122.98,122.95,8.79303906]
[1766039993542,0.68,122.98,122.96,0.66]
[1766039993751,0.68,122.98,122.95,8.79303906]
[1766039994055,8.81142561,122.98,122.95,8.79303906]
[1766039994255,0.68,122.97,122.95,8.79303906]
[1766039995148,8.81142561,122.98,122.95,8.79303906]
[1766039995853,0.68,122.97,122.95,8.13303906]
[1766039996248,0.68,122.97,122.95,8.79303906]
[1766039996655,8.13142561,122.98,122.96,0.66]
[1766039996858,0.68,122.97,122.94,17.05377959]
[1766039997157,0.68,122.97,122.95,0.66]
[1766039997461,0.68,122.97,122.95,8.79329586]
[1766039998052,0.68,122.97,122.95,8.13329586]
[1766039998258,0.68,122.97,122.95,8.79329586]
[1766039999459,8.13142561,122.98,122.95,8.13329586]
[1766039999661,10.43767296,122.99,122.96,0.66]
[1766040000368,11.11767296,122.99,122.96,0.66]
[1766040000674,11.11767296,122.99,122.97,0.66]
[1766040001251,10.43767296,122.99,122.97,0.66]
[1766040001641,8.92,123.0,122.97,0.66]
[1766040001971,9.6,123.0,122.97,0.66]
[1766040002745,9.6,123.0,122.97,8.79193641]
[1766040003142,12.04250975,123.0,122.97,8.79193641]
[1766040003863,19.49280207,123.0,122.97,0.66]
[1766040004043,3.12250975,122.99,122.96,8.79249952]
[1766040004360,0.68,122.98,122.96,0.66]
[1766040004559,3.12250975,122.98,122.95,0.66]
[1766040004764,3.12250975,122.98,122.96,0.66]
[1766040004970,0.68,122.98,122.96,0.66]
[1766040005853,11.25360695,122.99,122.96,0.66]
[1766040006169,0.68,122.97,122.94,17.71376042]
[1766040006380,3.12250975,122.97,122.94,8.79376042]
[1766040009267,0.68,122.97,122.94,8.13376042]
[1766040009473,0.68,122.97,122.95,0.66]
[1766040010247,19.24975332,122.97,122.94,8.79376042]
[1766040018869,0.71,122.96,122.93,16.94444735]
[1766040019280,0.71,122.96,122.94,0.7]
[1766040019572,0.71,122.95,122.93,8.13450243]
[1766040019950,0.71,122.95,122.93,8.83450243]
[1766040020476,0.71,122.96,122.94,0.7]
[1766040020670,3.15250975,122.96,122.94,0.7]
[1766040027901,2.44250975,122.95,122.93,8.83450243]
[1766040028071,3.15250975,122.94,122.92,8.92]
[1766040028264,0.71,122.94,122.92,9.62]
[1766040028469,0.71,122.94,122.92,8.83533628]
[1766040029361,0.71,122.94,122.92,0.7]
[1766040029988,0.71,122.94,122.92,8.83535011]
[1766040031196,8.8429181,122.96,122.93,0.7]
[1766040031488,12.66177227,122.96,122.93,0.7]
[1766040032178,0.71,122.95,122.93,0.7]
[1766040033073,12.66177227,122.96,122.93,0.7]
[1766040033596,28.19982649,122.97,122.94,0.7]
[1766040033788,20.06767296,122.97,122.94,0.7]
[1766040034000,19.35767296,122.97,122.94,0.7]
[1766040034199,11.14767296,122.97,122.94,0.7]
[1766040034575,11.14767296,122.97,122.94,8.13383529]
[1766040034974,11.14767296,122.97,122.94,8.83383529]
[1766040035595,10.43767296,122.97,122.94,8.83383529]
[1766040035779,0.71,122.96,122.94,8.83383529]
[1766040036190,10.43767296,122.97,122.95,0.7]
[1766040036393,12.66058262,122.98,122.95,0.7]
[1766040036899,8.84172845,122.98,122.95,0.7]
[1766040038300,11.95058262,122.98,122.95,0.7]
[1766040038600,0.71,122.97,122.95,0.7]
[1766040038892,0.71,122.97,122.94,8.83383529]
[1766040040306,8.84211346,122.97,122.94,8.83383529]
[1766040040708,8.84211346,122.97,122.95,0.7]
[1766040040874,0.71,122.97,122.94,8.83383529]
[1766040041401,0.71,122.97,122.95,0.7]
[1766040041617,12.66048869,122.98,122.95,0.7]
[1766040041907,0.71,122.97,122.95,0.71]
[1766040048627,10.43767296,123.0,122.96,0.71]
[1766040048797,37.5892179,123.03,122.99,0.71]
[1766040049012,4.52885417,123.01,122.98,0.71]
[1766040049338,3.81885417,123.01,122.98,0.71]
[1766040049530,0.71,123.0,122.97,0.71]
[1766040049939,0.71,123.0,122.97,8.84178727]
[1766040050443,0.71,122.98,122.96,0.71]
[1766040051052,4.52885417,122.99,122.96,8.84232117]
[1766040051537,0.71,122.99,122.97,8.13202148]
[1766040051737,9.63,123.0,122.98,0.71]
[1766040052654,9.63,123.0,122.97,8.13202148]
[1766040052847,9.63,123.0,122.97,8.84202148]
[1766040053741,0.71,123.0,122.97,8.84202148]
[1766040055241,0.71,123.0,122.98,0.71]
[1766040055445,0.71,122.99,122.97,8.84202148]
[1766040056736,3.81885417,123.0,122.97,8.84202148]
[1766040056931,4.52885417,123.0,122.97,8.84202148]
[1766040057731,3.81885417,123.0,122.97,8.13202148]
[1766040057936,0.71,123.0,122.98,0.71]
[1766040058822,0.71,123.0,122.97,8.84202148]
[1766040059418,4.52885417,123.0,122.97,8.84202148]
[1766040060349,4.52558631,123.0,122.97,8.84202148]
[1766040060654,3.81558631,123.0,122.97,8.84202148]
[1766040060830,0.71,122.99,122.97,8.84202148]
[1766040062046,11.14767296,122.99,122.96,8.13258137]
[1766040062257,11.14767296,122.99,122.96,8.84258137]
[1766040062431,10.43767296,122.99,122.96,8.84258137]
[1766040062632,11.14767296,122.99,122.96,8.84258137]
[1766040063142,11.14767296,122.99,122.97,0.71]
[1766040064042,10.43767296,122.99,122.97,0.71]
[1766040064731,11.14767296,122.99,122.97,0.71]
[1766040064932,0.71,122.98,122.96,8.84258137]
[1766040065134,0.71,122.98,122.96,8.13258137]
[1766040065432,0.71,122.98,122.94,0.71]
[1766040065433,0.71,122.97,122.94,0.71]
[1766040065650,0.71,122.97,122.94,8.13367166]
[1766040065844,0.71,122.96,122.94,8.13367166]